[Event "FIDE CB Open 2022"]
[Site "Ceske Budejovice"]
[Date "2022.07.03"]
[Round "3.27"]
[White "Svanda, Adam"]
[Black "Prazak, Daniel"]
[Result "1/2-1/2"]
[ECO "D34"]
[WhiteElo "1918"]
[BlackElo "2113"]
[Annotator "RC"]
[PlyCount "136"]
[EventDate "2022.07.01"]
[EventType "swiss"]
[EventCountry "CZE"]
[SourceTitle "playchess.com"]
[Source "ChessBase"]
[SourceQuality "1"]
[TimeControl "40/5400+30:1800+30"]

1. c4 {[%emt 0:00:07]} e6 {[%emt 0:00:15]} 2. g3 {[%emt 0:00:09]} Nf6 {[%emt 0:00:19]} 3. Bg2 {[%emt 0:00:08]} d5 {[%emt 0:00:34]} 4. b3 {[%emt 0:01:22]} Be7 {[%emt 0:00:42]} 5. Bb2 {[%emt 0:00:22]} O-O {[%emt 0:00:48]} 6. Nf3 {[%emt 0:00:46]} c5 {[%emt 0:00:32]} 7. O-O {[%emt 0:01:01]} Nc6 {[%emt 0:01:03]} 8. cxd5 {[%emt 0:02:48]} exd5 {[%emt 0:06:21]} 9. d4 {[%emt 0:00:44]} Be6 {[%emt 0:00:58]} 10. Nc3 {[%emt 0:04:57]} Rc8 {[%emt 0:11:05]} 11. Rc1 {[%emt 0:02:00]} cxd4 {[%emt 0:03:34]} 12. Nxd4 {[%emt 0:00:33]} Qd7 {[%emt 0:00:52]} 13. e3 {[%emt 0:14:14]} Rfd8 {[%emt 0:05:12]} 14. Nce2 {[%emt 0:03:32]} Bg4 {[%emt 0:14:47]} 15. f3 {[%emt 0:07:49]} Bh3 {[%emt 0:01:30]} 16. Nf4 {[%emt 0:00:47]} Bxg2 {[%emt 0:01:49]} 17. Kxg2 {[%emt 0:00:18]} a6 {[%emt 0:11:45]} 18. a3 {[%emt 0:00:56]} Nxd4 {[%emt 0:12:25]} 19. Qxd4 {[%emt 0:06:47]} Rc6 {[%emt 0:08:58]} 20. Rxc6 {[%emt 0:03:20]} bxc6 {[%emt 0:00:51]} 21. b4 {[%emt 0:00:39]} a5 {[%emt 0:01:11]} 22. Nd3 {[%emt 0:00:45]} axb4 {[%emt 0:01:04]} 23. axb4 {[%emt 0:00:12]} Qb7 {[%emt 0:03:48]} 24. Ra1 {[%emt 0:01:25]} Ra8 {[%emt 0:01:20]} 25. Nc5 {[%emt 0:04:03]} Bxc5 {[%emt 0:01:40]} 26. Qxc5 {[%emt 0:05:38]} Rxa1 {[%emt 0:00:14]} 27. Bxa1 {[%emt 0:00:02]} Ne8 {[%emt 0:01:36]} 28. Bd4 {[%emt 0:02:41]} Qd7 {[%emt 0:02:45]} 29. Qa7 {[%emt 0:02:50]} Qxa7 {[%emt 0:00:33]} 30. Bxa7 {[%emt 0:00:01]} f6 {[%emt 0:00:21]} 31. e4 {[%emt 0:02:03]} dxe4 {[%emt 0:00:57]} 32. fxe4 {[%emt 0:00:02]} Nc7 {[%emt 0:00:53]} 33. Bb8 {[%emt 0:01:58]} Nb5 {[%emt 0:01:07]} 34. Kf2 {[%emt 0:01:41]} Na3 {[%emt 0:02:46]} 35. Ke2 {[%emt 0:00:28]} Kf7 {[%emt 0:00:41]} 36. Kd3 {[%emt 0:00:59]} Ke6 {[%emt 0:00:41]} 37. Kd4 {[%emt 0:00:34]} Nc2+ {[%emt 0:00:42]} 38. Kc5 {[%emt 0:00:08]} Kd7 {[%emt 0:00:06]} 39. h3 {[%emt 0:01:08]} Ne1 {[%emt 0:01:38]} 40. Kd4 {[%emt 0:02:14]} Ke6 {[%emt 0:01:05]} 41. Kc5 {[%emt 0:30:09]} Nd3+ {[%emt 0:30:20]} 42. Kxc6 {[%emt 0:01:00]} Nxb4+ {[%emt 0:00:04]} 43. Kb5 {[%emt 0:00:07]} Nd3 {[%emt 0:00:13]} 44. Kc4 {[%emt 0:03:24]} Nf2 {[%emt 0:00:20]} 45. h4 {[%emt 0:00:19]} Nxe4 {[%emt 0:00:08]} 46. Kd4 {[%emt 0:00:20]} Nd6 {[%emt 0:00:00]} 47. Ke3 {[%emt 0:00:00]} h5 {[%emt 0:00:00]} 48. Kf4 {[%emt 0:00:00]} Nb5 {[%emt 0:00:00]} 49. Ke4 {[%emt 0:00:00]} g6 {[%emt 0:00:00]} 50. Kf4 {[%emt 0:00:00]} Nd4 {[%emt 0:00:00]} 51. Ke4 {[%emt 0:00:00]} Nc6 {[%emt 0:00:00]} 52. Bc7 {[%emt 0:00:00]} Ne5 {[%emt 0:00:00]} 53. Bb8 {[%emt 0:00:00]} Ng4 {[%emt 0:00:00]} 54. Bc7 {[%emt 0:00:00]} Kd7 {[%emt 0:00:00]} 55. Bb8 {[%emt 0:00:00]} Kc6 {[%emt 0:00:00]} 56. Bf4 {[%emt 0:00:00]} Kc5 {[%emt 0:00:00]} 57. Bc7 {[%emt 0:00:00]} Kc4 {[%emt 0:00:00]} 58. Ba5 {[%emt 0:00:00]} Nf2+ {[%emt 0:00:00]} 59. Kf3 {[%emt 0:00:00]} Nd3 {[%emt 0:00:00]} 60. Bd8 {[%emt 0:00:00]} Ne5+ {[%emt 0:00:00]} 61. Ke4 {[%emt 0:00:00]} Ng4 {[%emt 0:00:00]} 62. Ba5 {[%emt 0:00:00]} Kc5 {[%emt 0:00:00]} 63. Bc7 {[%emt 0:00:00]} Kc6 {[%emt 0:00:00]} 64. Bb8 {[%emt 0:00:00]} Kd7 {[%emt 0:00:00]} 65. Bf4 {[%emt 0:00:00]} Ke6 {[%emt 0:00:00]} 66. Bc7 {[%emt 0:00:00]} Nf2+ {[%emt 0:00:00]} 67. Ke3 {[%emt 0:00:00]} Nd1+ {[%emt 0:00:00]} 68. Kd2 {[%emt 0:00:00]} Nf2 {[%emt 0:00:00]} 1/2-1/2

[Event "FIDE CB Open 2022"]
[Site "Ceske Budejovice"]
[Date "2022.07.03"]
[Round "3.28"]
[White "Vltavsky, Vladimir"]
[Black "Simunek, Jakub Simon"]
[Result "1-0"]
[ECO "D33"]
[WhiteElo "2106"]
[BlackElo "1887"]
[Annotator "NA"]
[PlyCount "47"]
[EventDate "2022.07.01"]
[EventType "swiss"]
[EventCountry "CZE"]
[SourceTitle "playchess.com"]
[Source "ChessBase"]
[SourceQuality "1"]
[TimeControl "40/5400+30:1800+30"]

1. d4 {[%emt 0:04:58]} e6 {[%emt 0:00:34]} 2. Nf3 {[%emt 0:00:15]} d5 {[%emt 0:00:27]} 3. c4 {[%emt 0:00:17]} Nf6 {[%emt 0:00:23]} 4. Nc3 {[%emt 0:00:11]} c5 {[%emt 0:04:36]} 5. cxd5 {[%emt 0:02:33]} exd5 {[%emt 0:00:19]} 6. g3 {[%emt 0:00:24]} Nc6 {[%emt 0:08:07]} 7. Bg2 {[%emt 0:00:22]} Be6 {[%emt 0:00:35]} 8. O-O {[%emt 0:00:53]} Qd7 {[%emt 0:09:06]} 9. Re1 {[%emt 0:06:48]} O-O-O {[%emt 0:02:41]} 10. Bf4 {[%emt 0:07:39]} Nh5 {[%emt 0:03:58]} 11. Be3 {[%emt 0:00:10]} Be7 {[%emt 0:00:53]} 12. Rc1 {[%emt 0:01:25]} f5 {[%emt 0:02:00]} 13. Na4 {[%emt 0:01:17]} f4 {[%emt 0:06:14]} 14. gxf4 {[%emt 0:00:26]} Bh3 {[%emt 0:04:18]} 15. Bxh3 {[%emt 0:01:20]} Qxh3 {[%emt 0:00:07]} 16. Nxc5 {[%emt 0:00:47]} Rd6 {[%emt 0:08:20]} 17. Kh1 {[%emt 0:00:40]} Nf6 {[%emt 0:01:20]} 18. Rg1 {[%emt 0:03:08]} Ne4 {[%emt 0:13:52]} 19. Nxe4 {[%emt 0:04:21]} dxe4 {[%emt 0:00:06]} 20. Ne5 {[%emt 0:00:07]} Qe6 {[%emt 0:01:10]} 21. Qa4 {[%emt 0:03:17]} a6 {[%emt 0:03:58]} 22. Nxc6 {[%emt 0:00:28]} Rxc6 {[%emt 0:00:07]} 23. Rxc6+ {[%emt 0:00:15]} Qxc6 {[%emt 0:00:14]} 24. Rc1 {[%emt 0:00:09]} 1-0

[Event "FIDE CB Open 2022"]
[Site "Ceske Budejovice"]
[Date "2022.07.03"]
[Round "3.29"]
[White "Zaza, Martin"]
[Black "Hladky, Tadeas"]
[Result "1/2-1/2"]
[ECO "A34"]
[WhiteElo "1911"]
[BlackElo "2095"]
[Annotator "NA"]
[PlyCount "80"]
[EventDate "2022.07.01"]
[EventType "swiss"]
[EventCountry "CZE"]
[SourceTitle "playchess.com"]
[Source "ChessBase"]
[SourceQuality "1"]
[TimeControl "40/5400+30:1800+30"]

1. Nf3 {[%emt 0:00:11]} d5 {[%emt 0:00:07]} 2. g3 {[%emt 0:00:09]} Nf6 {[%emt 0:00:21]} 3. Bg2 {[%emt 0:00:20]} c5 {[%emt 0:00:14]} 4. c4 {[%emt 0:00:45]} Nc6 {[%emt 0:00:48]} 5. cxd5 {[%emt 0:00:58]} Nxd5 {[%emt 0:00:15]} 6. Nc3 {[%emt 0:00:16]} Nxc3 {[%emt 0:00:40]} 7. bxc3 {[%emt 0:00:04]} g6 {[%emt 0:05:19]} 8. O-O {[%emt 0:00:54]} Bg7 {[%emt 0:00:05]} 9. Bb2 {[%emt 0:01:45]} Qb6 {[%emt 0:03:46]} 10. Rb1 {[%emt 0:03:23]} Bf5 {[%emt 0:01:53]} 11. d3 {[%emt 0:00:11]} O-O {[%emt 0:02:21]} 12. Ba1 {[%emt 0:01:14]} Qc7 {[%emt 0:02:16]} 13. c4 {[%emt 0:01:38]} e5 {[%emt 0:07:04]} 14. Nd2 {[%emt 0:06:34]} Rad8 {[%emt 0:01:56]} 15. Qa4 {[%emt 0:02:10]} Bd7 {[%emt 0:06:34]} 16. Qa3 {[%emt 0:01:49]} b6 {[%emt 0:00:36]} 17. Ne4 {[%emt 0:01:34]} Bg4 {[%emt 0:09:14]} 18. Nc3 {[%emt 0:00:47]} Nd4 {[%emt 0:00:29]} 19. Rb2 {[%emt 0:00:45]} Rd7 {[%emt 0:02:02]} 20. h3 {[%emt 0:01:29]} Be6 {[%emt 0:02:55]} 21. Nd5 {[%emt 0:01:01]} Qd6 {[%emt 0:02:28]} 22. Rd2 {[%emt 0:01:47]} Nf5 {[%emt 0:12:37]} 23. e4 {[%emt 0:01:54]} Nd4 {[%emt 0:05:16]} 24. f4 {[%emt 0:03:16]} f6 {[%emt 0:00:28]} 25. Bxd4 {[%emt 0:01:18]} cxd4 {[%emt 0:00:09]} 26. Qxd6 {[%emt 0:00:17]} Rxd6 {[%emt 0:00:04]} 27. fxe5 {[%emt 0:00:52]} fxe5 {[%emt 0:00:07]} 28. Rxf8+ {[%emt 0:01:39]} Kxf8 {[%emt 0:00:14]} 29. Rf2+ {[%emt 0:00:19]} Ke8 {[%emt 0:00:10]} 30. Nc7+ {[%emt 0:00:08]} Ke7 {[%emt 0:00:07]} 31. Nxe6 {[%emt 0:00:35]} Rxe6 {[%emt 0:00:22]} 32. h4 {[%emt 0:01:00]} Rc6 {[%emt 0:00:28]} 33. Rb2 {[%emt 0:03:56]} Rc5 {[%emt 0:01:39]} 34. Kf2 {[%emt 0:00:24]} Ra5 {[%emt 0:00:25]} 35. Ke2 {[%emt 0:00:24]} Ra3 {[%emt 0:01:44]} 36. g4 {[%emt 0:01:25]} Bf6 {[%emt 0:03:03]} 37. g5 {[%emt 0:00:15]} Bg7 {[%emt 0:00:05]} 38. c5 {[%emt 0:00:09]} bxc5 {[%emt 0:01:47]} 39. Rb7+ {[%emt 0:00:49]} Kf8 {[%emt 0:00:04]} 40. Rb8+ {[%emt 0:00:31]} Kf7 {[%emt 0:00:07]} 1/2-1/2

[Event "FIDE CB Open 2022"]
[Site "Ceske Budejovice"]
[Date "2022.07.03"]
[Round "3.30"]
[White "Hrbolka, Ladislav"]
[Black "Koc, Azra Ece"]
[Result "0-1"]
[ECO "D02"]
[WhiteElo "2164"]
[BlackElo "1867"]
[Annotator "ChessBase"]
[PlyCount "31"]
[EventDate "2022.07.01"]
[EventType "swiss"]
[EventCountry "CZE"]
[SourceTitle "playchess.com"]
[Source "ChessBase"]
[SourceQuality "1"]
[TimeControl "40/5400+30:1800+30"]

1. d4 {[%emt 0:00:08]} Nf6 {[%emt 0:00:06]} 2. Nf3 {[%emt 0:00:04]} e6 {[%emt 0:00:03]} 3. Bf4 {[%emt 0:00:18]} d5 {[%emt 0:00:07]} 4. e3 {[%emt 0:00:06]} Bd6 {[%emt 0:00:04]} 5. Bg3 {[%emt 0:01:01]} c5 {[%emt 0:01:42]} 6. Nbd2 {[%emt 0:07:48]} Qc7 {[%emt 0:02:01]} 7. c4 {[%emt 0:04:31]} Nbd7 {[%emt 0:06:35]} 8. cxd5 {[%emt 0:06:34]} exd5 {[%emt 0:01:31]} 9. dxc5 {[%emt 0:04:35]} Nxc5 {[%emt 0:14:08]} 10. Rc1 {[%emt 0:09:27]} Qe7 {[%emt 0:20:13]} 11. Bb5+ {[%emt 0:02:51]} Bd7 {[%emt 0:02:30]} 12. Bxd7+ {[%emt 0:01:19]} Qxd7 {[%emt 0:02:01]} 13. Bxd6 {[%emt 0:11:07]} Nd3+ {[%emt 0:06:24]} 14. Kf1 {[%emt 0:00:10]} Nxc1 {[%emt 0:01:39]} 15. Be5 {[%emt 0:00:24]} Qb5+ {[%emt 0:01:00]} 16. Kg1 {[%emt 0:00:17]} 0-1

[Event "FIDE CB Open 2022"]
[Site "Ceske Budejovice"]
[Date "2022.07.03"]
[Round "3.31"]
[White "Laith, Kasib"]
[Black "Musil, Vitezslav"]
[Result "1/2-1/2"]
[ECO "A04"]
[WhiteElo "2079"]
[BlackElo "1834"]
[Annotator "ChessBase"]
[PlyCount "80"]
[EventDate "2022.07.01"]
[EventType "swiss"]
[EventCountry "CZE"]
[SourceTitle "playchess.com"]
[Source "ChessBase"]
[SourceQuality "1"]
[TimeControl "40/5400+30:1800+30"]

1. e4 {[%emt 0:00:38]} c5 {[%emt 0:00:37]} 2. Nf3 {[%emt 0:00:13]} Nc6 {[%emt 0:00:14]} 3. d3 {[%emt 0:00:19]} d6 {[%emt 0:01:56]} 4. g3 {[%emt 0:00:10]} g6 {[%emt 0:00:33]} 5. Bg2 {[%emt 0:00:07]} Bg7 {[%emt 0:00:00]} 6. O-O {[%emt 0:00:31]} e5 {[%emt 0:02:58]} 7. Re1 {[%emt 0:04:24]} Nge7 {[%emt 0:04:11]} 8. c3 {[%emt 0:00:37]} O-O {[%emt 0:01:17]} 9. a3 {[%emt 0:00:09]} h6 {[%emt 0:03:28]} 10. b4 {[%emt 0:00:11]} Kh7 {[%emt 0:03:52]} 11. b5 {[%emt 0:01:04]} Nb8 {[%emt 0:01:36]} 12. c4 {[%emt 0:01:27]} a6 {[%emt 0:00:06]} 13. Nc3 {[%emt 0:00:33]} axb5 {[%emt 0:13:21]} 14. cxb5 {[%emt 0:00:40]} Be6 {[%emt 0:04:35]} 15. Bb2 {[%emt 0:08:17]} Nd7 {[%emt 0:03:23]} 16. Nd2 {[%emt 0:04:54]} b6 {[%emt 0:10:34]} 17. Nc4 {[%emt 0:01:31]} Qc7 {[%emt 0:00:20]} 18. Rc1 {[%emt 0:11:57]} Rab8 {[%emt 0:02:43]} 19. Ne3 {[%emt 0:06:41]} f5 {[%emt 0:09:03]} 20. exf5 {[%emt 0:10:13]} Nxf5 {[%emt 0:01:15]} 21. Nxf5 {[%emt 0:03:39]} Bxf5 {[%emt 0:03:13]} 22. Nd5 {[%emt 0:04:39]} Qd8 {[%emt 0:00:12]} 23. Rc4 {[%emt 0:01:28]} Nf6 {[%emt 0:02:33]} 24. Nxf6+ {[%emt 0:08:56]} Qxf6 {[%emt 0:01:59]} 25. f4 {[%emt 0:07:05]} Be6 {[%emt 0:03:28]} 26. Rce4 {[%emt 0:03:11]} Qf7 {[%emt 0:04:20]} 27. Rf1 {[%emt 0:05:01]} Qd7 {[%emt 0:03:29]} 28. fxe5 {[%emt 0:02:37]} dxe5 {[%emt 0:01:11]} 29. Ree1 {[%emt 0:04:28]} Qxb5 {[%emt 0:01:08]} 30. Bxe5 {[%emt 0:00:45]} Rxf1+ {[%emt 0:01:48]} 31. Bxf1 {[%emt 0:00:02]} Bxe5 {[%emt 0:03:26]} 32. Rxe5 {[%emt 0:00:23]} Qd7 {[%emt 0:00:08]} 33. Qe2 {[%emt 0:02:49]} Re8 {[%emt 0:01:44]} 34. Qe3 {[%emt 0:03:10]} Bf7 {[%emt 0:01:30]} 35. Rxe8 {[%emt 0:00:19]} Qxe8 {[%emt 0:00:26]} 36. Qxe8 {[%emt 0:01:10]} Bxe8 {[%emt 0:00:30]} 37. Kf2 {[%emt 0:01:36]} Kg7 {[%emt 0:00:00]} 38. Ke3 {[%emt 0:00:10]} Kf6 {[%emt 0:01:08]} 39. d4 {[%emt 0:00:14]} cxd4+ {[%emt 0:00:51]} 40. Kxd4 {[%emt 0:00:06]} Ke6 {[%emt 0:00:15]} 1/2-1/2

[Event "FIDE CB Open 2022"]
[Site "Ceske Budejovice"]
[Date "2022.07.03"]
[Round "3.32"]
[White "Zeleny, Tomas"]
[Black "Placer, Sebastian"]
[Result "1/2-1/2"]
[ECO "C02"]
[WhiteElo "2136"]
[BlackElo "2062"]
[Annotator "RC"]
[PlyCount "199"]
[EventDate "2022.07.01"]
[EventType "swiss"]
[EventCountry "CZE"]
[SourceTitle "playchess.com"]
[Source "ChessBase"]
[SourceQuality "1"]
[TimeControl "40/5400+30:1800+30"]

1. e4 {[%emt 0:00:04]} e6 {[%emt 0:00:15]} 2. d4 {[%emt 0:00:20]} d5 {[%emt 0:00:05]} 3. e5 {[%emt 0:00:05]} c5 {[%emt 0:00:03]} 4. Nf3 {[%emt 0:00:05]} Nc6 {[%emt 0:00:11]} 5. Bd3 {[%emt 0:00:06]} Nxd4 {[%emt 0:00:23]} 6. Nxd4 {[%emt 0:00:37]} cxd4 {[%emt 0:00:04]} 7. O-O {[%emt 0:00:20]} Ne7 {[%emt 0:00:02]} 8. Bf4 {[%emt 0:01:28]} Nc6 {[%emt 0:00:17]} 9. Nd2 {[%emt 0:02:35]} Be7 {[%emt 0:04:50]} 10. Re1 {[%emt 0:01:31]} Qb6 {[%emt 0:00:40]} 11. Nb3 {[%emt 0:01:08]} Bd7 {[%emt 0:00:43]} 12. h4 {[%emt 0:01:39]} O-O-O {[%emt 0:02:41]} 13. a4 {[%emt 0:15:27]} Bb4 {[%emt 0:02:19]} 14. Re2 {[%emt 0:11:48]} f6 {[%emt 0:12:01]} 15. Bb5 {[%emt 0:14:16]} fxe5 {[%emt 0:38:52]} 16. Bxc6 {[%emt 0:02:53]} exf4 {[%emt 0:00:46]} 17. Bxd7+ {[%emt 0:00:19]} Rxd7 {[%emt 0:00:31]} 18. Qxd4 {[%emt 0:15:44]} Re8 {[%emt 0:03:41]} 19. Qxf4 {[%emt 0:05:58]} Bd6 {[%emt 0:02:26]} 20. Qd4 {[%emt 0:02:42]} Qxd4 {[%emt 0:01:09]} 21. Nxd4 {[%emt 0:00:08]} e5 {[%emt 0:00:50]} 22. Rae1 {[%emt 0:06:01]} Rf8 {[%emt 0:01:27]} 23. Nf3 {[%emt 0:01:41]} e4 {[%emt 0:00:41]} 24. Nd4 {[%emt 0:00:45]} Be5 {[%emt 0:03:52]} 25. Rd1 {[%emt 0:01:17]} Rf4 {[%emt 0:01:23]} 26. g3 {[%emt 0:00:58]} Rg4 {[%emt 0:02:33]} 27. c3 {[%emt 0:04:46]} a6 {[%emt 0:01:29]} 28. Kg2 {[%emt 0:00:57]} Kc7 {[%emt 0:01:40]} 29. Nc2 {[%emt 0:01:30]} Rg6 {[%emt 0:06:39]} 30. Red2 {[%emt 0:00:14]} Rgd6 {[%emt 0:01:27]} 31. Kf1 {[%emt 0:00:20]} Kc6 {[%emt 0:03:09]} 32. Ke2 {[%emt 0:01:34]} Kc5 {[%emt 0:01:10]} 33. Nd4 {[%emt 0:02:12]} g6 {[%emt 0:02:07]} 34. Ke3 {[%emt 0:01:22]} Bg7 {[%emt 0:02:10]} 35. g4 {[%emt 0:02:58]} Be5 {[%emt 0:00:31]} 36. f4 {[%emt 0:01:27]} exf3 {[%emt 0:00:22]} 37. Nxf3 {[%emt 0:00:22]} Bg7 {[%emt 0:00:28]} 38. Kf4 {[%emt 0:00:51]} Rf7+ {[%emt 0:00:14]} 39. Kg3 {[%emt 0:00:16]} Re7 {[%emt 0:00:47]} 40. Kf4 {[%emt 0:01:04]} Re4+ {[%emt 0:00:15]} 41. Kg3 {[%emt 0:01:07]} Rxa4 {[%emt 0:00:22]} 42. Re2 {[%emt 0:05:11]} Rd7 {[%emt 0:07:49]} 43. Ng5 {[%emt 0:02:07]} Kc4 {[%emt 0:17:08]} 44. Nxh7 {[%emt 0:00:51]} Kb3 {[%emt 0:03:53]} 45. Ng5 {[%emt 0:02:55]} Ra2 {[%emt 0:03:55]} 46. Ne6 {[%emt 0:00:05]} b6 {[%emt 0:01:50]} 47. Nxg7 {[%emt 0:03:12]} Rxg7 {[%emt 0:01:01]} 48. Rxd5 {[%emt 0:00:07]} Rxb2 {[%emt 0:00:06]} 49. Re6 {[%emt 0:06:15]} Kxc3 {[%emt 0:00:25]} 50. Rc6+ {[%emt 0:00:10]} Kb3 {[%emt 0:00:32]} 51. Rxb6+ {[%emt 0:01:37]} Kc4 {[%emt 0:00:20]} 52. Rxb2 {[%emt 0:00:19]} Kxd5 {[%emt 0:00:04]} 53. Rb6 {[%emt 0:00:17]} a5 {[%emt 0:02:08]} 54. Rb5+ {[%emt 0:00:34]} Ke6 {[%emt 0:00:05]} 55. Rxa5 {[%emt 0:00:06]} Rb7 {[%emt 0:00:25]} 56. Kf4 {[%emt 0:03:57]} Kf6 {[%emt 0:00:08]} 57. Ra6+ {[%emt 0:00:15]} Kg7 {[%emt 0:00:06]} 58. Ra4 {[%emt 0:00:43]} Rc7 {[%emt 0:00:09]} 59. Ke5 {[%emt 0:00:28]} Rb7 {[%emt 0:00:39]} 60. Kd6 {[%emt 0:01:37]} Rb6+ {[%emt 0:01:21]} 61. Kd5 {[%emt 0:00:56]} Rb7 {[%emt 0:00:00]} 62. Rc4 {[%emt 0:00:10]} Rf7 {[%emt 0:01:26]} 63. Ke5 {[%emt 0:00:37]} Re7+ {[%emt 0:01:07]} 64. Kd6 {[%emt 0:00:15]} Re1 {[%emt 0:00:16]} 65. g5 {[%emt 0:03:03]} Rd1+ {[%emt 0:00:12]} 66. Ke6 {[%emt 0:00:53]} Re1+ {[%emt 0:00:14]} 67. Kd6 {[%emt 0:00:06]} Rd1+ {[%emt 0:00:05]} 68. Ke7 {[%emt 0:00:18]} Re1+ {[%emt 0:00:09]} 69. Kd8 {[%emt 0:00:26]} Rd1+ {[%emt 0:00:07]} 70. Kc8 {[%emt 0:00:12]} Rh1 {[%emt 0:00:13]} 71. Rc7+ {[%emt 0:01:20]} Kg8 {[%emt 0:00:19]} 72. Rc4 {[%emt 0:00:35]} Kg7 {[%emt 0:00:06]} 73. Re4 {[%emt 0:00:45]} Rc1+ {[%emt 0:00:25]} 74. Kd8 {[%emt 0:00:07]} Rd1+ {[%emt 0:01:47]} 75. Ke8 {[%emt 0:00:16]} Rh1 {[%emt 0:00:21]} 76. Re7+ {[%emt 0:01:01]} Kg8 {[%emt 0:00:04]} 77. Re4 {[%emt 0:00:05]} Kg7 {[%emt 0:00:04]} 78. Rd4 {[%emt 0:00:05]} Re1+ {[%emt 0:00:14]} 79. Kd8 {[%emt 0:00:04]} Re2 {[%emt 0:01:12]} 80. Rd7+ {[%emt 0:00:51]} Kf8 {[%emt 0:00:39]} 81. Rd4 {[%emt 0:01:12]} Kg7 {[%emt 0:00:41]} 82. Kc7 {[%emt 0:02:33]} Rc2+ {[%emt 0:00:05]} 83. Kd6 {[%emt 0:00:10]} Rh2 {[%emt 0:00:18]} 84. Ke5 {[%emt 0:00:31]} Re2+ {[%emt 0:00:07]} 85. Kf4 {[%emt 0:00:26]} Re7 {[%emt 0:00:33]} 86. Kg4 {[%emt 0:00:12]} Rb7 {[%emt 0:00:11]} 87. Ra4 {[%emt 0:00:19]} Rc7 {[%emt 0:00:07]} 88. h5 {[%emt 0:00:20]} gxh5+ {[%emt 0:00:12]} 89. Kxh5 {[%emt 0:00:11]} Rb7 {[%emt 0:00:14]} 90. Ra6 {[%emt 0:01:36]} Rc7 {[%emt 0:00:10]} 91. Rg6+ {[%emt 0:02:43]} Kh7 {[%emt 0:00:05]} 92. Rb6 {[%emt 0:00:13]} Kg7 {[%emt 0:00:04]} 93. Rb5 {[%emt 0:00:11]} Ra7 {[%emt 0:00:11]} 94. Rc5 {[%emt 0:00:49]} Rb7 {[%emt 0:00:07]} 95. Ra5 {[%emt 0:00:03]} Rc7 {[%emt 0:00:03]} 96. g6 {[%emt 0:00:04]} Rb7 {[%emt 0:00:19]} 97. Kg5 {[%emt 0:00:17]} Rc7 {[%emt 0:00:04]} 98. Kf5 {[%emt 0:00:28]} Rb7 {[%emt 0:00:03]} 99. Re5 {[%emt 0:02:20]} Ra7 {[%emt 0:00:14]} 100. Kg5 {[%emt 0:00:36]} 1/2-1/2

[Event "FIDE CB Open 2022"]
[Site "Ceske Budejovice"]
[Date "2022.07.03"]
[Round "3.33"]
[White "Hradek, Matyas"]
[Black "Simecek, Bohumil"]
[Result "0-1"]
[ECO "B12"]
[WhiteElo "1888"]
[BlackElo "2059"]
[Annotator "ChessBase"]
[PlyCount "72"]
[EventDate "2022.07.01"]
[EventType "swiss"]
[EventCountry "CZE"]
[SourceTitle "playchess.com"]
[Source "ChessBase"]
[SourceQuality "1"]
[TimeControl "40/5400+30:1800+30"]

1. e4 {[%emt 0:00:11]} c6 {[%emt 0:00:21]} 2. d4 {[%emt 0:00:06]} d5 {[%emt 0:00:10]} 3. e5 {[%emt 0:00:04]} Bf5 {[%emt 0:00:11]} 4. h4 {[%emt 0:00:08]} h6 {[%emt 0:01:22]} 5. g4 {[%emt 0:00:07]} Bd7 {[%emt 0:00:14]} 6. Be3 {[%emt 0:02:05]} e6 {[%emt 0:01:26]} 7. Nc3 {[%emt 0:02:13]} Qb6 {[%emt 0:01:56]} 8. Na4 {[%emt 0:02:44]} Qc7 {[%emt 0:03:24]} 9. Nf3 {[%emt 0:05:33]} b6 {[%emt 0:03:14]} 10. Nc3 {[%emt 0:04:18]} a6 {[%emt 0:06:26]} 11. Ne2 {[%emt 0:16:00]} c5 {[%emt 0:02:45]} 12. c3 {[%emt 0:00:59]} Nc6 {[%emt 0:03:03]} 13. Nf4 {[%emt 0:03:48]} cxd4 {[%emt 0:31:44]} 14. cxd4 {[%emt 0:01:58]} Bb4+ {[%emt 0:02:24]} 15. Bd2 {[%emt 0:02:32]} Nge7 {[%emt 0:02:35]} 16. Bd3 {[%emt 0:04:51]} g6 {[%emt 0:09:43]} 17. Rc1 {[%emt 0:07:09]} Qb7 {[%emt 0:04:57]} 18. Ng2 {[%emt 0:19:58]} Rc8 {[%emt 0:08:44]} 19. Bb1 {[%emt 0:07:25]} Bxd2+ {[%emt 0:02:20]} 20. Qxd2 {[%emt 0:00:17]} Na5 {[%emt 0:01:15]} 21. Ne3 {[%emt 0:07:03]} Bb5 {[%emt 0:01:27]} 22. b3 {[%emt 0:01:02]} O-O {[%emt 0:02:51]} 23. h5 {[%emt 0:01:49]} Rxc1+ {[%emt 0:01:31]} 24. Qxc1 {[%emt 0:00:05]} Rc8 {[%emt 0:00:40]} 25. Qd2 {[%emt 0:02:39]} g5 {[%emt 0:01:28]} 26. Nc2 {[%emt 0:04:37]} Qc7 {[%emt 0:01:23]} 27. Rh3 {[%emt 0:00:48]} Nec6 {[%emt 0:05:35]} 28. Nxg5 {[%emt 0:02:46]} Nxe5 {[%emt 0:00:23]} 29. dxe5 {[%emt 0:01:06]} Qxe5+ {[%emt 0:00:15]} 30. Qe3 {[%emt 0:00:10]} Qb2 {[%emt 0:00:56]} 31. Qd2 {[%emt 0:00:58]} Qxb1+ {[%emt 0:00:30]} 32. Qd1 {[%emt 0:00:30]} Qxc2 {[%emt 0:00:36]} 33. Nf3 {[%emt 0:00:08]} Qe4+ {[%emt 0:00:39]} 34. Kd2 {[%emt 0:00:11]} Qd3+ {[%emt 0:00:27]} 35. Ke1 {[%emt 0:00:08]} Qc3+ {[%emt 0:00:21]} 36. Qd2 {[%emt 0:00:11]} Qa1+ {[%emt 0:00:08]} 0-1